bitfinex-derivatives/quotes_ETHF0:USTF0_20250902
["timestamp","ask_amount","ask_price","bid_price","bid_amount"]
[1756792724244,0.67185814,4385.7,4385.6,41.2344]
[1756792725948,0.67185814,4385.7,4385.6,41.5241]
[1756792727646,0.67185814,4385.7,4385.6,41.2344]
[1756792729245,0.67185814,4385.7,4385.6,41.0044]
[1756792729444,0.86575814,4385.7,4385.6,0.23]
[1756792729641,1.85417895,4385.7,4385.6,0.23]
[1756792729837,1.85418681,4385.7,4385.6,0.23]
[1756792730843,1.85418681,4385.7,4385.6,0.4344]
[1756792731045,0.865766,4385.7,4385.6,0.4344]
[1756792731947,0.865766,4385.7,4385.6,0.6413]
[1756792732150,0.86577862,4385.7,4385.6,0.931]
[1756792733250,0.8657835,4385.7,4385.6,0.931]
[1756792734153,0.1872835,4385.7,4385.6,0.931]
[1756792734450,0.6718835,4385.7,4385.6,0.931]
[1756792736658,0.8657835,4385.7,4385.6,0.931]
[1756792738051,0.1872835,4385.7,4385.6,0.931]
[1756792738253,0.1872835,4385.7,4385.6,1.91942081]
[1756792738653,0.2837,4386.1,4385.6,1.91942081]
[1756792738859,0.18726121,4386.0,4385.9,0.4113]
[1756792739062,0.18726121,4386.0,4385.9,0.931]
[1756792740252,0.2837,4386.3,4386.0,0.2897]
[1756792740568,0.86572776,4386.2,4386.1,0.2044]
[1756792740864,0.86572776,4386.2,4386.1,0.4344]
[1756792741057,1.85414857,4386.2,4386.1,0.23]
[1756792741463,1.85414857,4386.2,4386.0,0.23]
[1756792741660,0.86572776,4386.1,4386.0,0.23]
[1756792742057,0.86572776,4386.1,4386.0,0.4344]
[1756792742866,0.86572776,4386.1,4386.0,0.931]
[1756792744472,0.47092776,4386.1,4386.0,0.931]
[1756792744668,0.18722776,4386.1,4386.0,0.931]
[1756792745269,0.2837,4386.1,4386.0,0.931]
[1756792745464,0.47088838,4386.1,4386.0,0.931]
[1756792745662,0.2837,4386.8,4386.0,9.0655208]
[1756792745863,0.18716074,4386.7,4386.6,0.4113]
[1756792746065,0.47086074,4386.7,4386.6,0.931]
[1756792746462,0.67176074,4386.7,4386.6,0.931]
[1756792746675,0.86566074,4386.7,4386.6,0.931]
[1756792747275,0.47086074,4386.7,4386.6,0.931]
[1756792748174,0.18716074,4386.7,4386.6,1.91942081]
[1756792748767,0.2837,4387.5,4386.7,0.2897]
[1756792748967,0.18703449,4387.4,4386.8,40.8]
[1756792749168,0.4846,4387.0,4386.9,0.701]
[1756792749480,0.70543449,4387.0,4386.8,40.8]
[1756792749671,0.47070721,4386.9,4386.8,40.8]
[1756792751676,0.2009,4386.7,4386.6,0.6328]
[1756792751981,0.5034,4386.7,4386.6,0.9444]
[1756792752173,0.7086,4386.7,4386.6,41.7444]
[1756792752479,0.89617631,4386.7,4386.6,41.4328]
[1756792752680,0.89617631,4386.7,4386.6,41.7444]
[1756792753176,0.89617391,4386.7,4386.6,41.7444]
[1756792753584,0.89617391,4386.7,4386.6,0.9444]
[1756792754083,0.89617391,4386.7,4386.6,41.7444]
[1756792754591,0.7086,4386.7,4386.6,41.7444]
[1756792756487,0.3025,4386.7,4386.6,41.7444]
[1756792757986,0.3025,4386.9,4386.7,0.3116]
[1756792758191,0.3025,4386.9,4386.8,0.9295]
[1756792758390,0.48999145,4386.9,4386.8,0.9295]
[1756792759892,0.68559145,4386.9,4386.8,0.9295]
[1756792760189,0.68560246,4386.9,4386.8,0.9295]
[1756792762490,0.89080246,4386.9,4386.8,0.23]
[1756792762695,0.89080246,4386.9,4386.8,0.9295]
[1756792763595,0.89080246,4386.9,4386.8,0.23]
[1756792766299,0.7033,4386.7,4386.6,40.8]
[1756792766495,1.68362927,4386.7,4386.6,41.03]
[1756792767190,1.68362927,4386.7,4386.6,1.72232681]
[1756792767191,0.18750246,4386.7,4386.6,1.72232681]
[1756792767692,0.68560246,4386.7,4386.6,1.72232681]
[1756792768101,0.49000246,4386.7,4386.6,1.72232681]
[1756792769286,0.3025,4386.7,4386.6,1.72232681]
[1756792769491,0.18782779,4386.7,4386.6,1.72232681]
[1756792770897,0.18782476,4386.7,4386.6,1.72232681]
[1756792771799,0.49032476,4386.7,4386.6,1.72232681]
[1756792772202,0.18782476,4386.7,4386.6,1.72232681]
[1756792773203,0.49032476,4386.7,4386.6,1.72232681]
[1756792773591,0.89112476,4386.7,4386.6,0.4195]
[1756792775503,0.89142556,4386.7,4386.6,0.4195]
[1756792776999,0.89142556,4386.7,4386.6,0.23]
[1756792778305,0.525,4386.5,4386.4,0.23]
[1756792778503,1.80845237,4386.5,4386.4,0.23]
[1756792779402,4.22342556,4386.5,4386.4,0.23]
[1756792780804,4.22342556,4386.5,4386.4,0.4195]
[1756792781302,4.22342556,4386.5,4386.4,0.23]
[1756792781607,4.2240602,4386.5,4386.4,0.23]
[1756792785412,4.0998602,4386.5,4386.4,0.4262]
[1756792786513,4.2176602,4386.5,4386.4,0.23]
[1756792792217,4.21761022,4386.5,4386.4,0.23]
[1756792796723,0.3115,4386.4,4386.1,0.79282681]
[1756792797023,0.71,4385.6,4385.5,4.19682681]
[1756792797327,0.71,4385.6,4385.5,45.4548268]
[1756792797626,0.71,4385.6,4385.5,45.7617268]
[1756792797827,0.71,4385.6,4385.5,45.53372681]
[1756792799728,0.71,4385.6,4385.5,44.99682681]
[1756792800025,0.71,4385.6,4385.5,45.53372681]
[1756792800421,0.3115,4386.4,4385.6,0.3069]
[1756792800627,0.71,4386.4,4386.3,0.3959]
[1756792800827,0.8986696,4386.4,4386.3,0.6259]
[1756792801026,0.8986696,4386.4,4386.3,0.23]
[1756792801430,0.3985,4383.9,4383.7,3.2078]
[1756792801622,1.3801472,4383.9,4383.2,3.2078]
[1756792801828,1.19132681,4383.3,4383.2,3.404]
[1756792802032,1.50282681,4383.3,4383.2,3.404]
[1756792802430,1.50282681,4383.3,4383.2,44.204]
[1756792802626,1.50282681,4383.3,4383.2,3.404]
[1756792802830,1.50282681,4383.3,4383.2,3.2078]
[1756792803028,0.71,4383.3,4383.2,3.404]
[1756792803235,0.3115,4383.2,4382.9,41.033]
[1756792803427,0.1178,4383.5,4383.0,0.1962]
[1756792803428,1.10432681,4383.1,4383.0,0.1962]
[1756792803623,1.10432681,4383.1,4382.9,41.033]
[1756792803624,0.3115,4383.0,4382.6,3.2078]
[1756792803827,0.71,4382.7,4382.6,3.404]
[1756792804034,1.50282681,4382.7,4382.6,3.6037]
[1756792805031,1.50282681,4382.7,4382.6,0.3959]
[1756792807333,0.71,4382.7,4382.6,0.3959]
[1756792807539,1.50282681,4382.7,4382.6,0.7028]
[1756792809134,3.2078,4383.2,4382.6,0.7028]
[1756792809333,0.98482681,4382.9,4382.8,0.7028]
[1756792809536,1.29632681,4382.9,4382.8,0.7028]
[1756792810033,0.5035,4382.9,4382.8,0.7028]
[1756792810339,0.3115,4383.5,4383.2,0.3069]
[1756792810533,0.3115,4383.5,4383.4,0.7028]
[1756792811039,0.5035,4383.5,4383.4,0.7028]
[1756792811240,0.71,4383.5,4383.4,0.3959]
[1756792812236,0.5035,4383.5,4383.4,0.6896]
[1756792812543,1.48682681,4383.7,4383.6,0.414]
[1756792812835,1.48682681,4383.7,4383.6,0.232]
[1756792814539,1.48682681,4383.7,4383.6,0.4383]
[1756792815338,1.48682681,4383.7,4383.6,0.9397]
[1756792815539,0.694,4383.7,4383.6,0.9397]
[1756792815839,1.68335673,4383.7,4383.6,0.9397]
[1756792816334,0.694,4383.7,4383.6,0.9397]
[1756792817141,0.0569,4383.8,4383.7,0.7077]
[1756792817740,0.5564,4383.8,4383.7,0.7077]
[1756792819144,0.7509,4383.8,4383.7,0.414]
[1756792819643,0.7509,4383.8,4383.7,41.214]
[1756792819831,0.7509,4383.8,4383.7,41.5077]
[1756792820031,0.0569,4383.8,4383.7,42.49705673]
[1756792820936,0.3093,4384.4,4384.3,0.414]
[1756792821137,0.3093,4384.4,4384.3,0.9397]
[1756792821343,0.4995,4384.4,4384.3,0.9397]
[1756792822034,0.0569,4384.6,4384.4,0.2937]
[1756792822240,0.5564,4384.6,4384.5,0.7077]
[1756792822441,0.7509,4384.6,4384.5,0.414]
[1756792823240,0.7509,4384.6,4384.5,0.7077]
[1756792823840,0.5564,4384.6,4384.5,0.7077]
[1756792824948,0.5564,4384.6,4384.5,0.88786572]
[1756792825752,0.5564,4384.6,4384.5,0.7077]
[1756792826346,0.0569,4384.6,4384.5,4.90485673]
[1756792827150,0.0569,4384.6,4384.5,5.086431]
[1756792828051,0.0569,4384.6,4384.5,45.886431]
[1756792830745,0.0569,4384.6,4384.5,50.193401]
[1756792830948,3.5925,4386.1,4386.0,0.2063]
[1756792831148,3.78010876,4386.1,4386.0,0.4383]
[1756792831346,3.9018,4386.1,4386.0,0.646]
[1756792831546,3.9018,4386.1,4386.0,0.232]
[1756792833154,0.3093,4386.9,4386.1,0.2937]
[1756792833461,0.694,4386.9,4386.8,0.414]
[1756792833651,0.694,4386.9,4386.8,0.647]
[1756792836056,0.694,4386.9,4386.8,0.9407]
[1756792837352,0.4995,4386.9,4386.8,0.9407]
[1756792837551,3.2078,4387.6,4386.8,0.9407]
[1756792837756,0.694,4387.5,4387.4,0.2063]
[1756792837951,0.694,4387.5,4387.4,0.4383]
[1756792838350,0.8151,4387.5,4387.4,0.232]
[1756792854064,0.694,4387.5,4387.4,0.4309]
[1756792854471,0.3093,4387.5,4387.4,1.11004564]
[1756792854676,0.3093,4387.5,4387.4,0.9308]
[1756792855372,0.7246,4387.5,4387.4,0.9308]
[1756792855872,0.5164,4387.5,4387.4,0.9308]
[1756792856073,0.5164,4387.5,4387.4,41.423]
[1756792858474,0.7283,4386.9,4386.5,0.3078]
[1756792858772,0.7283,4386.9,4386.8,0.391]
[1756792859072,0.7283,4386.9,4386.8,41.4988]
[1756792864381,0.5201,4387.4,4387.3,0.391]
[1756792864676,1.38744865,4387.4,4387.3,0.623]
[1756792866281,1.38744865,4387.4,4387.3,0.4309]
[1756792866475,1.38744865,4387.4,4387.3,0.232]
[1756792866774,0.4153,4387.3,4386.8,0.232]
[1756792866974,1.71765673,4386.9,4386.8,0.232]
[1756792867175,0.4342,4386.5,4386.1,3.2078]
[1756792867476,0.4342,4386.5,4386.4,33.062]
[1756792867886,3.642,4386.5,4386.4,33.062]
[1756792868174,3.5208,4386.5,4386.4,33.062]
[1756792868580,3.9361,4386.5,4386.4,0.4309]
[1756792870877,4.0573,4386.5,4386.4,0.232]
[1756792871282,3.7279,4386.5,4386.4,0.9193]
[1756792871481,3.2078,4386.5,4386.4,0.9193]
[1756792872380,0.2871,4386.9,4386.8,0.388]
[1756792872587,0.2871,4386.9,4386.8,0.9132]
[1756792872787,0.482,4386.9,4386.8,0.9132]
[1756792873386,0.2871,4386.9,4386.8,0.9132]
[1756792873685,3.4949,4387.1,4386.9,0.2942]
[1756792873890,3.6898,4387.1,4387.0,0.6822]
[1756792876690,0.482,4387.1,4387.0,0.6822]
[1756792876893,0.482,4387.1,4387.0,1.47490439]
[1756792877393,3.5978,4387.6,4387.5,0.1938]
[1756792877596,3.5978,4387.6,4387.5,0.4248]
[1756792877786,3.5978,4387.6,4387.5,0.619]
[1756792877987,3.8849,4387.6,4387.5,0.9132]
[1756792879288,3.8849,4387.6,4387.5,0.4248]
[1756792879491,3.8849,4387.6,4387.5,0.231]
[1756792879694,4.67760439,4387.6,4387.5,0.231]
[1756792881087,0.1151,4387.5,4387.1,0.231]
[1756792881292,1.46980439,4387.2,4387.1,0.231]
[1756792881493,0.6771,4387.2,4387.1,1.70590439]
[1756792881686,3.2078,4387.6,4387.1,1.70590439]
[1756792881904,0.482,4387.5,4387.4,1.47490439]
[1756792882196,0.482,4387.5,4387.4,0.6822]
[1756792882793,0.2871,4387.4,4387.2,40.8]
[1756792882998,0.6771,4387.4,4387.3,0.719]
[1756792883298,0.6771,4387.4,4387.3,0.231]
[1756792884196,0.6771,4387.4,4387.3,0.719]
[1756792884990,0.6771,4387.4,4387.3,0.9132]
[1756792885390,3.6898,4387.6,4387.5,0.388]
[1756792885591,3.6898,4387.6,4387.5,0.6822]
[1756792885802,3.8849,4387.6,4387.5,0.6822]
[1756792886000,3.8849,4387.6,4387.5,0.1938]
[1756792886198,3.8849,4387.6,4387.5,0.488]
[1756792886394,3.8849,4387.6,4387.5,0.6822]
[1756792886395,3.2078,4387.6,4387.5,0.6822]
[1756792887096,3.4027,4387.6,4387.5,0.6822]
[1756792887396,3.2078,4387.6,4387.5,0.6822]
[1756792888402,3.4027,4387.6,4387.5,0.6822]
[1756792888608,3.6898,4387.6,4387.5,0.6822]
[1756792888902,4.45046589,4387.6,4387.5,0.6822]
[1756792889103,3.8849,4387.6,4387.5,0.6822]
[1756792889303,0.482,4387.6,4387.5,0.6822]
[1756792890403,0.6771,4388.2,4388.1,0.1938]
[1756792890599,1.43755096,4388.2,4388.1,0.4248]
[1756792891498,1.43755096,4388.2,4388.1,0.9132]
[1756792891803,1.43755096,4388.2,4388.1,0.4248]
[1756792892004,1.43755096,4388.2,4388.1,0.231]
[1756792896308,1.43755096,4388.2,4388.1,0.719]
[1756792896913,0.76045096,4388.2,4388.1,0.9132]
[1756792897101,0.2871,4388.5,4388.4,0.6822]
[1756792897307,0.2871,4388.9,4388.4,1.18070439]
[1756792897507,0.482,4388.9,4388.8,0.6822]
[1756792897704,0.482,4388.9,4388.8,1.70590439]
[1756792897902,0.482,4388.9,4388.8,42.50590439]
[1756792898504,0.482,4388.9,4388.8,1.70590439]
[1756792899211,3.2078,4389.0,4388.9,0.6822]
[1756792899913,3.4027,4389.0,4388.9,0.6822]
[1756792900212,3.8849,4389.0,4388.9,0.6822]
[1756792900511,3.8849,4389.0,4388.9,0.4248]
[1756792900707,0.2871,4388.9,4388.7,40.8]
[1756792900908,0.6771,4388.9,4388.8,0.231]
[1756792902416,0.39,4388.9,4388.7,40.8]
[1756792902714,0.6772,4388.9,4388.8,0.231]
[1756792905011,0.4033,4388.2,4388.1,0.2038]
[1756792905213,1.48320439,4388.2,4387.5,36.0318]
[1756792905413,0.4033,4387.7,4387.6,41.4266]
[1756792905621,0.6905,4387.7,4387.6,41.734]
[1756792907217,0.484,4387.7,4387.6,41.734]
[1756792908114,0.484,4387.7,4387.6,41.503]
[1756792908316,0.484,4387.7,4387.6,41.734]
[1756792908711,0.484,4387.7,4387.6,0.703]
[1756792908912,0.6905,4387.7,4387.6,0.4348]
[1756792909317,0.6905,4387.7,4387.6,0.7422]
[1756792909818,0.2872,4387.6,4387.5,32.824]
[1756792910017,0.2872,4387.6,4387.5,33.055]
[1756792910219,4.6905,4387.6,4387.5,0.231]
[1756792910822,5.62303779,4387.6,4387.5,0.231]
[1756792911818,0.5252,4387.5,4387.4,0.231]
[1756792912021,5.74544218,4387.5,4387.4,0.231]
[1756792913018,0.4033,4387.1,4387.0,0.231]
[1756792913320,0.6905,4387.1,4387.0,0.7422]
[1756792913922,0.6905,4387.1,4387.0,0.231]
[1756792915419,0.4033,4386.2,4385.4,0.3074]
[1756792915720,0.4033,4385.8,4385.7,0.231]
[1756792915917,0.4033,4384.9,4384.8,3.6034]
[1756792916126,0.6905,4384.9,4384.8,4.1418]
[1756792917224,0.6905,4384.9,4384.8,3.6426]
[1756792917822,0.6905,4384.9,4384.8,0.4348]
[1756792918722,0.6905,4384.9,4384.8,0.934]
[1756792918925,0.6905,4384.9,4384.8,0.6266]
[1756792919618,0.6905,4384.9,4384.8,0.934]
[1756792920318,4.00050439,4385.3,4385.2,0.3074]
[1756792920319,3.495,4385.3,4385.2,0.3074]
[1756792920627,3.6918,4385.3,4385.2,0.934]
[1756792921225,3.8983,4385.3,4385.2,0.934]
[1756792921426,0.6905,4385.3,4385.2,0.934]
[1756792924725,0.6905,4385.3,4384.3,0.703]
[1756792924726,0.1968,4384.4,4384.3,0.703]
[1756792924922,0.6905,4384.4,4384.3,0.934]
[1756792925118,0.6905,4384.4,4384.3,41.734]
[1756792925629,0.6905,4384.4,4384.3,0.934]
[1756792928927,0.79270439,4384.6,4384.3,0.934]
[1756792929123,1.27670439,4384.6,4384.5,0.3956]
[1756792929427,1.48320439,4384.6,4384.5,0.703]
[1756792932424,0.1251,4384.5,4383.0,3.5023]
[1756792932628,0.7085,4383.2,4383.1,0.6857]
[1756792932934,0.7085,4383.2,4383.1,0.4266]
[1756792933532,0.7085,4383.2,4383.1,0.9177]
[1756792934229,0.7085,4383.2,4383.1,0.6232]
[1756792934433,0.7085,4383.2,4383.1,0.4266]
[1756792934834,0.4001,4382.6,4382.5,0.6857]
[1756792935029,4.00050439,4383.4,4382.6,0.2945]
[1756792935030,3.2078,4382.9,4382.6,0.2945]
[1756792935231,3.5162,4383.4,4383.2,0.2945]
[1756792935431,0.5027,4383.3,4383.2,0.9177]
[1756792935633,0.7085,4383.3,4383.2,0.6232]
[1756792936031,0.7085,4383.3,4383.2,0.9177]
[1756792936225,0.7085,4383.3,4383.2,0.232]
[1756792936429,0.7085,4383.3,4383.2,0.4266]
[1756792936631,0.7085,4383.3,4383.2,0.7211]
[1756792936830,0.7085,4383.3,4383.2,0.9177]
[1756792937325,1.45763991,4383.3,4383.2,0.9177]
[1756792937728,1.45763991,4383.3,4383.2,0.6232]
[1756792937928,1.45763991,4383.3,4383.2,0.9177]
[1756792938131,1.45763991,4383.3,4383.2,0.232]
[1756792938329,1.45763991,4383.3,4383.2,0.9177]
[1756792939539,0.74913991,4383.3,4383.2,0.9177]
[1756792941946,0.74913991,4383.3,4383.2,41.7177]
[1756792943035,0.74913991,4383.3,4383.2,45.94584]
[1756792943742,0.74913991,4383.3,4383.2,45.7177]
[1756792944138,0.74913991,4383.3,4383.2,45.94584]
[1756792944742,0.74913991,4383.3,4383.2,45.7177]
[1756792945643,0.74913991,4383.3,4383.2,41.7177]
[1756792948940,0.74913991,4383.3,4383.2,42.70717011]
[1756792949942,0.74913991,4383.3,4383.2,46.70717011]
[1756792950142,0.3084,4384.6,4384.4,0.3912]
[1756792950438,1.5363689,4384.8,4384.5,0.6232]
[1756792950642,0.7085,4384.6,4384.5,0.6232]
[1756792950843,0.7085,4384.6,4384.5,41.2266]
[1756792951240,0.3084,4384.6,4384.5,41.5211]
[1756792953939,0.7085,4384.6,4384.5,0.7211]
[1756792955646,0.7085,4384.6,4384.5,0.4266]
[1756792958348,0.7085,4384.6,4384.5,0.7211]
[1756792958947,0.7085,4384.6,4384.5,0.4266]
[1756792959450,0.7085,4384.6,4384.5,0.232]
[1756792959648,1.69797011,4384.6,4384.5,0.232]
[1756792959851,0.1251,4384.5,4383.9,41.0945]
[1756792960051,0.7085,4384.0,4383.9,41.0945]
[1756792960247,0.7085,4384.0,4383.9,41.3265]
[1756792960547,3.2078,4384.9,4384.6,0.1946]
[1756792960548,0.7085,4384.7,4384.6,0.1946]
[1756792960752,0.7085,4384.7,4384.6,0.9177]
[1756792960753,0.5027,4384.7,4384.6,0.9177]
[1756792960952,0.5027,4384.8,4384.7,0.2945]
[1756792961143,0.2957,4385.4,4384.8,0.2876]
[1756792961351,3.2078,4385.5,4385.4,0.6701]
[1756792961652,3.2078,4385.5,4385.4,0.9021]
[1756792961854,3.2078,4385.5,4385.4,41.7021]
[1756792962650,3.8981,4386.5,4386.4,0.6701]
[1756792962848,4.57477331,4386.5,4386.4,0.9021]
[1756792963143,4.69377331,4386.5,4386.4,0.232]
[1756792963854,8.69377331,4386.5,4386.4,0.232]
[1756792964155,3.2078,4386.5,4386.4,0.9021]
[1756792964748,4.0171,4386.5,4385.9,0.2876]
[1756792964957,0.6903,4386.1,4386.0,0.4233]
[1756792965556,0.6903,4386.1,4386.0,0.9021]
[1756792966856,0.6903,4386.1,4386.0,0.6145]
[1756792967456,0.6903,4386.1,4386.0,0.4233]
[1756792970461,0.3946,4385.5,4385.4,40.8]
[1756792970655,0.6903,4385.5,4385.4,41.032]
[1756792971155,0.6903,4385.5,4385.4,41.3196]
[1756792971657,3.3268,4386.5,4385.4,41.3196]
[1756792971658,3.2078,4386.5,4386.4,0.3825]
[1756792971857,3.6959,4386.5,4386.4,0.9021]
[1756792972754,3.8981,4386.5,4386.4,0.9021]
[1756792973561,3.8981,4386.5,4386.4,0.6145]
[1756792974362,3.8981,4386.5,4386.4,0.4233]
[1756792975264,3.8981,4386.5,4386.4,0.232]
[1756792975662,3.8981,4386.5,4386.4,0.4233]
[1756792976162,3.8981,4386.5,4386.4,0.7109]
[1756792977769,0.6903,4386.5,4386.4,0.9021]
[1756792978071,3.8981,4387.1,4387.0,0.1913]
[1756792978269,3.8981,4387.1,4386.6,0.2876]
[1756792978461,3.6024,4387.1,4386.7,40.8]
[1756792978665,0.6903,4386.8,4386.7,41.0876]
[1756792979060,0.6903,4386.8,4386.7,0.4789]
[1756792979465,0.6903,4386.8,4386.7,0.6701]
[1756792980067,0.2957,4386.7,4386.5,40.8]
[1756792980277,0.6903,4386.6,4386.5,40.8]
[1756792981575,0.6903,4386.6,4385.9,0.2876]
[1756792981576,0.3946,4386.0,4385.9,0.4789]
[1756792981878,0.6903,4386.0,4385.9,0.7109]
[1756792982080,0.6903,4386.0,4385.9,41.2233]
[1756792982471,0.8093,4386.0,4385.9,40.8]
[1756792982678,0.6903,4386.0,4385.9,40.8]
[1756792982880,0.6903,4386.0,4385.9,41.0876]
[1756792984280,0.1924,4386.0,4385.9,41.0876]
[1756792984576,0.6903,4386.4,4386.3,0.6701]
[1756792984776,0.6903,4386.4,4386.3,0.9021]
[1756792987182,0.1924,4386.4,4386.3,0.9021]
[1756792987375,3.2078,4386.6,4386.3,0.6145]
[1756792987674,0.2957,4387.0,4386.5,1.37197011]
[1756792987880,0.4881,4387.0,4386.9,0.6701]
[1756792988075,0.1924,4387.0,4386.9,0.9021]
[1756792988275,0.4881,4387.0,4386.9,0.9021]
[1756792988778,0.6903,4387.0,4386.9,0.4233]
[1756792988983,0.6903,4387.0,4386.9,0.9021]
[1756792989181,1.67977011,4387.0,4386.9,0.232]
[1756792990781,2.48048005,4387.0,4386.1,0.2876]
[1756792990977,0.6903,4386.0,4385.9,0.4789]
[1756792991182,0.6903,4386.0,4385.9,0.7109]
[1756792991383,0.6903,4386.0,4385.9,0.9021]
[1756792991879,0.6903,4386.0,4385.9,0.4233]
[1756792992282,0.6903,4386.0,4385.9,0.9212]
[1756792997080,0.307,4386.3,4386.2,0.39]
[1756792997280,0.5053,4386.3,4386.2,0.9266]
[1756792998386,0.6944,4386.3,4386.2,0.9266]
[1756792999183,0.6944,4386.3,4386.2,0.622]
[1756792999679,0.6944,4386.3,4386.2,0.9266]
[1756793000285,0.6944,4386.3,4386.2,0.622]
[1756793000580,0.6944,4386.3,4386.2,0.4287]
[1756793001284,0.6944,4386.3,4386.2,0.9266]
[1756793006286,0.6944,4385.6,4385.5,0.5013]
[1756793006487,1.48737169,4385.6,4385.5,0.7323]
[1756793007180,0.6944,4385.6,4385.5,0.9256]
[1756793007985,0.5053,4385.6,4385.5,0.9256]
[1756793008591,0.6944,4385.6,4385.5,0.9256]
[1756793011381,0.3874,4385.6,4385.3,3.2078]
[1756793011583,0.307,4385.5,4385.3,3.2078]
[1756793011781,0.307,4385.5,4385.4,41.031]
[1756793012181,0.307,4385.5,4385.4,0.231]
[1756793012380,0.8137,4385.5,4385.4,0.231]
[1756793013985,0.6944,4385.5,4385.4,0.9256]
[1756793015491,0.5053,4385.5,4385.4,0.9256]
[1756793017791,3.2078,4385.8,4385.5,0.3046]
[1756793017988,0.6944,4386.1,4386.0,0.6946]
[1756793018188,1.38229465,4386.1,4386.0,0.9256]
[1756793018683,1.38229465,4386.1,4386.0,0.621]
[1756793018887,1.38229465,4386.1,4386.0,0.4277]
[1756793019299,1.38229465,4386.1,4386.0,0.7323]
[1756793019489,1.38229465,4386.1,4386.0,0.9256]
[1756793020290,1.38229465,4386.1,4386.0,0.4277]
[1756793020790,1.38229465,4386.1,4386.0,0.231]
[1756793021593,1.5736281,4386.1,4386.0,0.4277]
[1756793023889,1.5736281,4386.1,4386.0,0.7351]
[1756793025789,0.38963345,4386.1,4386.0,1.73077169]
[1756793025989,0.90103345,4386.1,4386.0,1.73077169]
[1756793028998,0.90096836,4386.1,4386.0,1.73077169]
[1756793029498,0.90096836,4386.1,4386.0,0.9378]
[1756793031497,0.90096836,4386.1,4386.0,0.231]
[1756793031694,4.10876836,4386.1,4386.0,0.231]
[1756793031905,8.90174005,4386.1,4386.0,0.231]
[1756793032398,4.10876836,4386.1,4386.0,1.73657169]
[1756793034797,0.19126836,4386.1,4386.0,2.65414338]
[1756793035099,0.5149,4386.9,4386.8,0.7126]
[1756793035399,0.70601769,4386.9,4386.8,1.73657169]
[1756793036491,0.7187,4387.6,4387.5,0.4052]
[1756793036695,0.90968461,4387.6,4387.5,1.73657169]
[1756793036894,0.90968461,4387.6,4387.5,42.53657169]
[1756793037602,0.39828461,4387.6,4387.5,42.53657169]
[1756793037895,0.70588461,4387.6,4387.5,41.7436]
[1756793038297,1.4988563,4387.6,4387.5,41.4362]
[1756793038498,1.4988563,4387.6,4387.5,41.2335]
[1756793039093,1.4988563,4387.6,4387.5,41.5409]
[1756793039604,1.30787169,4387.6,4387.5,41.5409]
[1756793042002,4.51567169,4387.6,4387.5,40.8]
[1756793042206,4.70617823,4387.6,4387.5,41.031]
[1756793042702,4.90997823,4387.6,4387.5,0.231]
[1756793048211,0.7187,4386.5,4386.4,3.7177]
[1756793048409,0.7187,4386.5,4386.4,4.1514]
[1756793048909,3.9265,4387.0,4386.9,0.7126]
[1756793049206,4.11703457,4387.0,4386.9,0.9436]
[1756793050908,4.11703457,4387.0,4386.9,0.6362]
[1756793051309,3.9265,4387.0,4386.9,0.6362]
[1756793051509,3.9265,4387.0,4386.9,0.9395]
[1756793052011,3.9265,4387.0,4386.9,0.4335]
[1756793052203,4.71947169,4387.0,4386.9,0.4335]
[1756793052910,4.71947169,4387.0,4386.9,0.7368]
[1756793053807,3.9265,4387.0,4386.9,0.9459]
[1756793054012,0.4872,4387.4,4387.3,0.4018]
[1756793054206,0.1951,4387.4,4387.3,0.9361]
[1756793055806,3.2078,4387.6,4387.5,0.7051]
[1756793056510,0.6906,4388.2,4388.1,0.4018]
[1756793056709,0.6906,4388.2,4388.1,0.9361]
[1756793058913,0.6906,4388.2,4388.1,0.4018]
[1756793059117,1.38591214,4388.2,4388.1,0.231]
[1756793059417,1.67801214,4388.2,4388.1,0.231]
[1756793059718,1.67801214,4388.2,4387.5,40.8]
[1756793059916,3.2078,4388.3,4387.6,0.231]
[1756793060212,3.6063,4388.3,4388.2,0.7051]
[1756793060411,3.4029,4388.3,4388.2,0.9361]
[1756793060613,3.695,4388.3,4388.2,0.9361]
[1756793061716,3.2078,4388.3,4388.2,0.9361]
[1756793062405,0.1951,4388.4,4388.3,0.3033]
[1756793062616,0.4872,4388.4,4388.3,0.7051]
[1756793066117,0.1951,4388.4,4388.3,0.7051]
[1756793066322,3.2078,4389.0,4388.9,0.7051]
[1756793066515,3.2078,4389.0,4388.9,0.9361]
[1756793067021,3.695,4389.0,4388.9,41.7361]
[1756793067220,0.4872,4389.0,4388.9,41.7361]
[1756793071326,0.4872,4389.0,4388.9,41.2237]
[1756793071524,0.4872,4389.0,4388.9,41.527]
[1756793074221,0.4872,4389.0,4388.9,41.296]
[1756793074424,0.4872,4389.0,4388.9,41.2237]
[1756793076626,0.4872,4389.0,4388.9,41.527]
[1756793079633,0.4872,4389.0,4388.9,41.296]
[1756793079932,0.4872,4389.0,4388.9,41.527]
[1756793080825,0.4872,4389.0,4388.9,41.296]
[1756793081126,0.4872,4389.0,4388.9,41.527]
[1756793082331,0.1951,4389.0,4388.9,41.527]
[1756793082531,3.2078,4389.1,4389.0,0.3957]
[1756793082729,3.2078,4389.1,4389.0,0.7089]
[1756793083627,3.7305,4389.1,4389.0,0.7089]
[1756793084633,3.2078,4389.1,4389.0,0.7089]
[1756793085024,3.7305,4389.1,4389.0,0.7089]